fUST/lending_fUST_20250206
["ID","MTS","AMOUNT","RATE_DAILY","PERIOD"]
[351779917,1738786238982,-500.0,0.00013698,2]
[351779918,1738786238991,-500.0,0.00013698,2]
[351779919,1738786239000,-500.0,0.00013698,2]
[351779920,1738786239010,-539.05970564,0.00013698,2]
[351779921,1738786239020,-500.0,0.00013698,2]
[351779922,1738786239029,-500.0,0.00013698,2]
[351779923,1738786239038,-500.0,0.00013698,2]
[351779924,1738786239047,-500.0,0.00013698,2]
[351779925,1738786239057,-500.0,0.00013698,2]
[351779926,1738786239070,-500.0,0.00013698,2]
[351779927,1738786239079,-500.0,0.00013698,2]
[351779928,1738786239089,-500.0,0.00013698,2]
[351779929,1738786239099,-500.0,0.00013698,2]
[351779930,1738786239108,-500.0,0.00013698,2]
[351779931,1738786239117,-500.0,0.00013698,2]
[351779932,1738786239127,-500.0,0.00013698,2]
[351779933,1738786239137,-500.0,0.00013698,2]
[351779934,1738786239148,-614.25680843,0.00013698,2]
[351779935,1738786239159,-500.0,0.00013698,2]
[351779936,1738786239169,-2431.44,0.00013698,2]
[351779937,1738786239178,-500.0,0.00013698,2]
[351779938,1738786239190,-500.0,0.00013698,2]
[351779939,1738786239200,-501.20315006,0.00013698,2]
[351779940,1738786239209,-500.0,0.00013698,2]
[351779941,1738786239218,-1284.78,0.00013698,2]
[351779942,1738786239230,-500.0,0.00013698,2]
[351779943,1738786239240,-500.0,0.00013698,2]
[351779944,1738786239249,-951.54,0.00013698,2]
[351779945,1738786239259,-500.0,0.00013698,2]
[351779946,1738786239269,-500.0,0.00013698,2]
[351779947,1738786239279,-500.0,0.00013698,2]
[351779948,1738786239288,-352.54752496,0.00013698,2]
[351779949,1738786239297,-500.0,0.00013698,2]
[351779950,1738786239307,-500.0,0.00013698,2]
[351779951,1738786239317,-500.0,0.00013698,2]
[351779952,1738786239327,-770.26,0.00013698,2]
[351779953,1738786239337,-500.0,0.00013698,2]
[351779954,1738786239346,-500.0,0.00013698,2]
[351779955,1738786239355,-500.0,0.00013698,2]
[351779956,1738786239364,-500.0,0.00013698,2]
[351779957,1738786239374,-500.0,0.00013698,2]
[351779958,1738786239383,-4008.21,0.00013698,2]
[351779960,1738786239392,-500.0,0.00013698,2]
[351779961,1738786239401,-645.28,0.00013698,2]
[351779962,1738786239411,-514.99960741,0.00013698,2]
[351779963,1738786239420,-500.0,0.00013698,2]
[351779964,1738786239430,-500.0,0.00013698,2]
[351779965,1738786239440,-500.0,0.00013698,2]
[351779966,1738786239450,-500.0,0.00013698,2]
[351779967,1738786239459,-500.0,0.00013698,2]
[351779968,1738786239469,-500.0,0.00013698,2]
[351779969,1738786239479,-630.69,0.00013698,2]
[351779970,1738786239488,-500.0,0.00013698,2]
[351779971,1738786239498,-500.0,0.00013698,2]
[351779972,1738786239507,-500.0,0.00013698,2]
[351779973,1738786239518,-962.11,0.00013698,2]
[351779974,1738786239527,-500.0,0.00013698,2]
[351779975,1738786239537,-4127.97,0.00013698,2]
[351779976,1738786239546,-500.0,0.00013698,2]
[351779977,1738786239728,-500.0,0.00013698,2]
[351779978,1738786239738,-500.0,0.00013698,2]
[351779979,1738786239748,-731.91,0.00013698,2]
[351779980,1738786239758,-500.0,0.00013698,2]
[351779981,1738786239768,-1563.03,0.00013698,2]
[351779982,1738786239781,-1936.9,0.00013698,2]
[351779983,1738786239790,-500.0,0.00013698,2]
[351779984,1738786239800,-500.0,0.00013698,2]
[351779985,1738786239811,-500.0,0.00013698,2]
[351779986,1738786239821,-500.0,0.00013698,2]
[351779987,1738786239831,-1671.84,0.00013698,2]
[351779988,1738786239841,-500.0,0.00013698,2]
[351779989,1738786239851,-500.0,0.00013698,2]
[351779990,1738786239862,-500.0,0.00013698,2]
[351779991,1738786239873,-500.0,0.00013698,2]
[351779992,1738786239883,-500.0,0.00013698,2]
[351779993,1738786239893,-500.0,0.00013698,2]
[351779994,1738786239903,-500.0,0.00013698,2]
[351779995,1738786239913,-438.22386094,0.00013698,2]
[351779996,1738786239923,-1525.29,0.00013698,2]
[351779997,1738786239934,-500.0,0.00013698,2]
[351779998,1738786239943,-500.0,0.00013698,2]
[351779999,1738786239953,-500.0,0.00013698,2]
[351780000,1738786239963,-500.0,0.00013698,2]
[351780001,1738786239973,-500.0,0.00013698,2]
[351780002,1738786239983,-1548.68,0.00013698,2]
[351780003,1738786239993,-697.25,0.00013698,2]
[351780004,1738786240003,-1359.17,0.00013698,2]
[351780005,1738786240013,-500.0,0.00013698,2]
[351780006,1738786240023,-500.0,0.00013698,2]
[351780007,1738786240033,-842.43,0.00013698,2]
[351780008,1738786240044,-500.0,0.00013698,2]
[351780009,1738786240053,-754.74,0.00013698,2]
[351780011,1738786240064,-999.21,0.00013698,2]
[351780013,1738786240074,-500.0,0.00013698,2]
[351780014,1738786240084,-500.0,0.00013698,2]
[351780015,1738786240094,-500.0,0.00013698,2]
[351780016,1738786240103,-500.0,0.00013698,2]
[351780017,1738786240113,-500.0,0.00013698,2]
[351780018,1738786240123,-500.0,0.00013698,2]
[351780019,1738786240133,-500.0,0.00013698,2]
[351780020,1738786240144,-500.0,0.00013698,2]
[351780021,1738786240156,-515.29609466,0.00013698,2]
[351780022,1738786240166,-500.0,0.00013698,2]
[351780023,1738786240176,-500.0,0.00013698,2]
[351780024,1738786240187,-500.0,0.00013698,2]
[351780025,1738786240196,-500.0,0.00013698,2]
[351780026,1738786240205,-501.22673616,0.00013698,2]
[351780027,1738786240215,-507.95164527,0.00013698,2]
[351780028,1738786240225,-500.0,0.00013698,2]
[351780029,1738786240235,-500.0,0.00013698,2]
[351780030,1738786240245,-500.0,0.00013698,2]
[351780031,1738786240254,-825.86,0.00013698,2]
[351780032,1738786240264,-500.0,0.00013698,2]
[351780033,1738786240274,-1070.33,0.00013698,2]
[351780034,1738786240283,-500.0,0.00013698,2]
[351780035,1738786240292,-500.0,0.00013698,2]
[351780036,1738786240302,-500.0,0.00013698,2]
[351780037,1738786240312,-329.93248114,0.00013698,2]
[351780038,1738786240322,-500.0,0.00013698,2]
[351780039,1738786240332,-505.44800151,0.00013698,2]
[351780040,1738786240341,-2322.23,0.00013698,2]
[351780041,1738786240351,-1416.63,0.00013698,2]
[351780042,1738786240360,-405.8795387,0.00013698,2]
[351780043,1738786240370,-321.82871719,0.00013698,2]
[351780044,1738786240379,-1078.15,0.00013698,2]
[351780045,1738786240389,-500.0,0.00013698,2]
[351780046,1738786240399,-685.73,0.00013698,2]
[351780047,1738786240408,-500.0,0.00013698,2]
[351780048,1738786240418,-500.0,0.00013698,2]
[351780049,1738786240428,-500.0,0.00013698,2]
[351780050,1738786240438,-500.0,0.00013698,2]
[351780051,1738786240448,-500.0,0.00013698,2]
[351780052,1738786240459,-211.74345682,0.00013698,2]
[351780053,1738786240469,-500.0,0.00013698,2]
[351780054,1738786240479,-847.75,0.00013698,2]
[351780055,1738786240488,-500.0,0.00013698,2]
[351780056,1738786240497,-500.0,0.00013698,2]
[351780057,1738786240506,-506.91672502,0.00013698,2]
[351780058,1738786240516,-500.0,0.00013698,2]
[351780059,1738786240525,-500.0,0.00013698,2]
[351780060,1738786240535,-500.0,0.00013698,2]
[351780061,1738786240544,-608.04,0.00013698,2]
[351780062,1738786240554,-500.0,0.00013698,2]
[351780063,1738786240565,-500.0,0.00013698,2]
[351780064,1738786240576,-698.19,0.00013698,2]
[351780065,1738786240585,-500.0,0.00013698,2]
[351780066,1738786240595,-500.0,0.00013698,2]
[351780067,1738786240605,-500.0,0.00013698,2]
[351780068,1738786240615,-500.0,0.00013698,2]
[351780069,1738786240626,-893.32,0.00013698,2]
[351780070,1738786240636,-4269.81,0.00013698,2]
[351780071,1738786240646,-966.15,0.00013698,2]
[351780072,1738786240656,-500.0,0.00013698,2]
[351780073,1738786240666,-617.06,0.00013698,2]
[351780074,1738786240676,-673.15,0.00013698,2]
[351780075,1738786240686,-500.0,0.00013698,2]
[351780076,1738786240695,-500.0,0.00013698,2]
[351780077,1738786240705,-500.0,0.00013698,2]
[351780078,1738786240715,-1830.76,0.00013698,2]
[351780079,1738786240724,-500.0,0.00013698,2]
[351780080,1738786240735,-540.91309947,0.00013698,2]
[351780081,1738786240745,-736.15,0.00013698,2]
[351780082,1738786240755,-500.0,0.00013698,2]
[351780083,1738786240764,-284.45020118,0.00013698,2]
[351780084,1738786240775,-500.0,0.00013698,2]
[351780085,1738786240785,-1140.73,0.00013698,2]
[351780086,1738786240795,-1326.84,0.00013698,2]
[351780087,1738786240806,-500.73042443,0.00013698,2]
[351780088,1738786240818,-500.0,0.00013698,2]
[351780089,1738786240828,-500.0,0.00013698,2]
[351780090,1738786240839,-508.68,0.00013698,2]
[351780091,1738786240850,-3235.38,0.00013698,2]
[351780092,1738786240860,-500.0,0.00013698,2]
[351780093,1738786240870,-500.0,0.00013698,2]
[351780094,1738786240880,-500.0,0.00013698,2]
[351780095,1738786240890,-557.57,0.00013698,2]
[351780096,1738786240901,-1592.1,0.00013698,2]
[351780097,1738786240911,-500.0,0.00013698,2]
[351780098,1738786240920,-519.1702499,0.00013698,2]
[351780099,1738786240930,-761.99,0.00013698,2]
[351780100,1738786240940,-500.0,0.00013698,2]
[351780101,1738786240950,-500.0,0.00013698,2]
[351780102,1738786240960,-500.0,0.00013698,2]
[351780103,1738786240971,-500.0,0.00013698,2]
[351780104,1738786240981,-500.0,0.00013698,2]
[351780105,1738786240991,-500.0,0.00013698,2]
[351780106,1738786241001,-500.0,0.00013698,2]
[351780107,1738786241010,-500.0,0.00013698,2]
[351780108,1738786241019,-500.0,0.00013698,2]
[351780109,1738786241029,-500.0,0.00013698,2]
[351780110,1738786241039,-500.0,0.00013698,2]
[351780111,1738786241049,-500.0,0.00013698,2]
[351780112,1738786241059,-500.0,0.00013698,2]
[351780113,1738786241074,-500.0,0.00013698,2]
[351780114,1738786241084,-500.0,0.00013698,2]
[351780115,1738786241093,-522.31791912,0.00013698,2]
[351780116,1738786241103,-2739.02,0.00013698,2]
[351780117,1738786241113,-500.0,0.00013698,2]
[351780118,1738786241123,-804.27,0.00013698,2]
[351780119,1738786241133,-500.0,0.00013698,2]
[351780120,1738786241144,-5976.62,0.00013698,2]
[351780121,1738786241155,-500.0,0.00013698,2]
[351780122,1738786241165,-7082.32,0.00013698,2]
[351780123,1738786241175,-500.0,0.00013698,2]
[351780124,1738786241184,-571.8211526,0.00013698,2]
[351780125,1738786241195,-500.0,0.00013698,2]
[351780126,1738786241205,-504.63537477,0.00013698,2]
[351780127,1738786241215,-500.0,0.00013698,2]
[351780128,1738786241225,-502.13000181,0.00013698,2]
[351780129,1738786241237,-750.13,0.00013698,2]
[351780130,1738786241247,-1120.69,0.00013698,2]
[351780131,1738786241258,-500.26325349,0.00013698,2]
[351780132,1738786241267,-704.97,0.00013698,2]
[351780133,1738786241277,-500.0,0.00013698,2]
[351780134,1738786241286,-663.85,0.00013698,2]
[351780135,1738786241296,-500.0,0.00013698,2]
[351780136,1738786241306,-500.0,0.00013698,2]
[351780137,1738786241319,-468.921,0.00013698,2]
[351780138,1738786241329,-2928.93,0.00013698,2]
[351780139,1738786241338,-500.0,0.00013698,2]
[351780140,1738786241347,-500.0,0.00013698,2]
[351780141,1738786241357,-2630.72,0.00013698,2]
[351780142,1738786241366,-2606.29,0.00013698,2]
[351780143,1738786241377,-500.0,0.00013698,2]
[351780144,1738786241387,-1614.48,0.00013698,2]
[351780145,1738786241396,-1614.48,0.00013698,2]
[351780146,1738786241405,-556.04,0.00013698,2]
[351780147,1738786241415,-1614.48,0.00013698,2]
[351780148,1738786241424,-1614.48,0.00013698,2]
[351780149,1738786241434,-1614.48,0.00013698,2]
[351780150,1738786241443,-500.0,0.00013698,2]
[351780151,1738786241457,-1614.48,0.00013698,2]
[351780152,1738786241467,-500.0,0.00013698,2]
[351780153,1738786241477,-1614.48,0.00013698,2]
[351780154,1738786241486,-1614.48,0.00013698,2]
[351780155,1738786241495,-500.0,0.00013698,2]
[351780156,1738786241504,-1614.48,0.00013698,2]
[351780157,1738786241513,-1614.48,0.00013698,2]
[351780158,1738786241525,-1614.48,0.00013698,2]
[351780159,1738786241536,-1614.48,0.00013698,2]
[351780160,1738786241550,-1614.48,0.00013698,2]
[351780161,1738786241560,-1614.48,0.00013698,2]
[351780162,1738786241572,-1614.48,0.00013698,2]
[351780163,1738786241582,-1614.48,0.00013698,2]
[351780164,1738786241591,-1614.48,0.00013698,2]
[351780165,1738786241601,-1614.48,0.00013698,2]
[351780166,1738786241610,-1614.48,0.00013698,2]
[351780167,1738786241620,-1614.48,0.00013698,2]
[351780168,1738786241630,-1614.48,0.00013698,2]
[351780169,1738786241639,-1614.48,0.00013698,2]
[351780170,1738786241648,-1614.48,0.00013698,2]
[351780171,1738786241658,-1614.65,0.00013698,2]
[351780172,1738786241667,-500.0,0.00013698,2]
[351780173,1738786241677,-721.69,0.00013698,2]
[351780174,1738786241687,-3613.48,0.00013698,2]
[351780175,1738786241697,-500.0,0.00013698,2]
[351780176,1738786241706,-500.0,0.00013698,2]
[351780177,1738786241716,-502.46518186,0.00013698,2]
[351780178,1738786241726,-201.9818426,0.00013698,2]
[351780179,1738786241735,-989.99,0.00013698,2]
[351780180,1738786241745,-596.94,0.00013698,2]
[351780181,1738786241754,-500.0,0.00013698,2]
[351780182,1738786241764,-500.0,0.00013698,2]
[351780183,1738786241773,-500.0,0.00013698,2]
[351780184,1738786241783,-500.0,0.00013698,2]
[351780185,1738786241792,-500.0,0.00013698,2]
[351780186,1738786241802,-500.0,0.00013698,2]
[351780187,1738786241812,-555.14,0.00013698,2]
[351780188,1738786241823,-500.0,0.00013698,2]
[351780189,1738786241832,-500.0,0.00013698,2]
[351780190,1738786241842,-500.8528102,0.00013698,2]
[351780191,1738786241852,-500.0,0.00013698,2]
[351780192,1738786241862,-500.0,0.00013698,2]
[351780193,1738786241872,-678.71,0.00013698,2]
[351780194,1738786241881,-500.0,0.00013698,2]
[351780195,1738786241891,-500.0,0.00013698,2]
[351780196,1738786241901,-500.0,0.00013698,2]
[351780197,1738786241911,-509.66229662,0.00013698,2]
[351780198,1738786241920,-500.0,0.00013698,2]
[351780199,1738786241931,-909.85,0.00013698,2]
[351780200,1738786241942,-500.0,0.00013698,2]
[351780201,1738786241953,-546.84,0.00013698,2]
[351780202,1738786241964,-625.74218619,0.00013698,2]
[351780203,1738786241974,-500.0,0.00013698,2]
[351780204,1738786241985,-725.92,0.00013698,2]
[351780205,1738786241996,-500.0,0.00013698,2]
[351780206,1738786242006,-1159.58,0.00013698,2]
[351780207,1738786242016,-575.50185589,0.00013698,2]
[351780208,1738786242025,-709.08,0.00013698,2]
[351780209,1738786242035,-500.0,0.00013698,2]
[351780210,1738786242045,-500.0,0.00013698,2]
[351780211,1738786242054,-232.44990168,0.00013698,2]
[351780212,1738786242065,-500.0,0.00013698,2]
[351780213,1738786242075,-8102.17,0.00013698,2]
[351780214,1738786242085,-535.69569744,0.00013698,2]
[351780215,1738786242096,-4834.97,0.00013698,2]
[351780216,1738786242105,-500.0,0.00013698,2]
[351780217,1738786242115,-500.0,0.00013698,2]
[351780218,1738786242124,-2045.43,0.00013698,2]
[351780219,1738786242134,-625.78,0.00013698,2]
[351780220,1738786242145,-493.45439239,0.00013698,2]
[351780221,1738786242161,-1628.75,0.00013698,2]
[351780222,1738786242171,-1399.07,0.00013698,2]
[351780223,1738786242181,-2728.78,0.00013698,2]
[351780224,1738786242192,-581.56,0.00013698,2]
[351780225,1738786242202,-506.24548495,0.00013698,2]
[351780226,1738786242213,-500.0,0.00013698,2]
[351780227,1738786242223,-539.99,0.00013698,2]
[351780228,1738786242234,-500.0,0.00013698,2]
[351780229,1738786242244,-500.0,0.00013698,2]
[351780230,1738786242254,-2721.33,0.00013698,2]
[351780231,1738786242264,-577.35,0.00013698,2]
[351780232,1738786242274,-502.3482059,0.00013698,2]
[351780233,1738786242284,-500.0,0.00013698,2]
[351780234,1738786242293,-2299.16,0.00013698,2]
[351780235,1738786242302,-500.0,0.00013698,2]
[351780236,1738786242312,-414.51564704,0.00013698,2]
[351780237,1738786242323,-510.97,0.00013698,2]
[351780238,1738786242334,-723.41,0.00013698,2]
[351780239,1738786242344,-36332.85,0.00013698,2]
[351780240,1738786242354,-500.0,0.00013698,2]
[351780241,1738786242363,-12470.54,0.00013698,2]
[351780242,1738786242373,-320.62455143,0.00013698,2]
[351780244,1738786242383,-1662.88,0.00013698,2]
[351780246,1738786242393,-500.0,0.00013698,2]
[351780248,1738786242402,-500.0,0.00013698,2]
[351780250,1738786242412,-650.69,0.00013698,2]
[351780252,1738786242421,-945.21,0.00013698,2]
[351780255,1738786242431,-500.0,0.00013698,2]
[351780257,1738786242441,-500.0,0.00013698,2]
[351780258,1738786242450,-500.0,0.00013698,2]
[351780260,1738786242459,-500.0,0.00013698,2]
[351780262,1738786242470,-500.0,0.00013698,2]
[351780264,1738786242479,-500.0,0.00013698,2]
[351780266,1738786242489,-500.0,0.00013698,2]
[351780268,1738786242499,-1271.51,0.00013698,2]
[351780270,1738786242508,-4947.09,0.00013698,2]
[351780272,1738786242518,-3147.96,0.00013698,2]
[351780274,1738786242529,-500.0,0.00013698,2]
[351780276,1738786242538,-1590.0,0.00013698,2]
[351780278,1738786242547,-514.86,0.00013698,2]
[351780280,1738786242557,-500.0,0.00013698,2]
[351780282,1738786242569,-500.0,0.00013698,2]
[351780284,1738786242579,-500.0,0.00013698,2]
[351780286,1738786242590,-502.23891831,0.00013698,2]
[351780288,1738786242599,-500.0,0.00013698,2]
[351780290,1738786242609,-500.0,0.00013698,2]
[351780292,1738786242619,-614.65,0.00013698,2]
[351780294,1738786242628,-500.0,0.00013698,2]
[351780296,1738786242637,-500.0,0.00013698,2]
[351780298,1738786242648,-500.0,0.00013698,2]
[351780300,1738786242658,-547.71,0.00013698,2]
[351780302,1738786242668,-500.0,0.00013698,2]
[351780304,1738786242678,-500.0,0.00013698,2]
[351780306,1738786242688,-2650.88,0.00013698,2]
[351780308,1738786242698,-6261.01,0.00013698,2]
[351780310,1738786242708,-500.0,0.00013698,2]
[351780311,1738786242718,-537.95,0.00013698,2]
[351780312,1738786242862,-948.01,0.00013698,2]
[351780313,1738786242874,-1875.12,0.00013698,2]
[351780314,1738786242885,-500.0,0.00013698,2]
[351780315,1738786242897,-500.0,0.00013698,2]
[351780316,1738786242907,-1123.9,0.00013698,2]
[351780317,1738786242917,-500.0,0.00013698,2]
[351780318,1738786242927,-6609.84,0.00013698,2]
[351780319,1738786242937,-500.0,0.00013698,2]
[351780320,1738786242947,-7953.6,0.00013698,2]
[351780321,1738786242957,-500.0,0.00013698,2]
[351780322,1738786242968,-500.0,0.00013698,2]
[351780323,1738786242978,-1162.16,0.00013698,2]
[351780324,1738786242988,-500.0,0.00013698,2]
[351780325,1738786242998,-988.21,0.00013698,2]
[351780326,1738786243008,-500.0,0.00013698,2]
[351780328,1738786243018,-11569.59,0.00013698,2]
[351780329,1738786243028,-500.0,0.00013698,2]
[351780330,1738786243037,-500.0,0.00013698,2]
[351780331,1738786243047,-851.85,0.00013698,2]
[351780332,1738786243056,-1499.91,0.00013698,2]
[351780333,1738786243068,-500.0,0.00013698,2]
[351780334,1738786243078,-1014.07,0.00013698,2]
[351780335,1738786243087,-500.0,0.00013698,2]
[351780336,1738786243097,-539.26,0.00013698,2]
[351780337,1738786243107,-500.0,0.00013698,2]
[351780338,1738786243117,-501.12136402,0.00013698,2]
[351780339,1738786243127,-500.0,0.00013698,2]
[351780340,1738786243137,-500.0,0.00013698,2]
[351780341,1738786243151,-623.74,0.00013698,2]
[351780342,1738786243161,-500.0,0.00013698,2]
[351780343,1738786243170,-500.0,0.00013698,2]
[351780344,1738786243179,-500.0,0.00013698,2]
[351780345,1738786243191,-635.58214511,0.00013698,2]
[351780346,1738786243200,-500.0,0.00013698,2]
[351780347,1738786243210,-500.0,0.00013698,2]
[351780348,1738786243220,-913.85,0.00013698,2]
[351780349,1738786243230,-500.0,0.00013698,2]
[351780350,1738786243241,-503.0661891,0.00013698,2]
[351780351,1738786243251,-574.71,0.00013698,2]
[351780352,1738786243261,-500.0,0.00013698,2]
[351780353,1738786243270,-500.0,0.00013698,2]
[351780354,1738786243279,-500.0,0.00013698,2]
[351780355,1738786243288,-535.55275327,0.00013698,2]
[351780356,1738786243298,-500.0,0.00013698,2]
[351780357,1738786243309,-834.06,0.00013698,2]
[351780358,1738786243322,-500.0,0.00013698,2]
[351780359,1738786243336,-629.67,0.00013698,2]
[351780360,1738786243345,-585.16,0.00013698,2]
[351780361,1738786243355,-500.0,0.00013698,2]
[351780362,1738786243364,-864.89,0.00013698,2]
[351780363,1738786243375,-2913.57,0.00013698,2]
[351780364,1738786243385,-3773.19,0.00013698,2]
[351780365,1738786243394,-501.7663596,0.00013698,2]
[351780366,1738786243404,-2658.53,0.00013698,2]
[351780367,1738786243413,-500.0,0.00013698,2]
[351780368,1738786243423,-500.0,0.00013698,2]
[351780369,1738786243433,-500.0,0.00013698,2]
[351780370,1738786243442,-500.0,0.00013698,2]
[351780371,1738786243451,-500.0,0.00013698,2]
[351780372,1738786243461,-655.15,0.00013698,2]
[351780373,1738786243471,-500.0,0.00013698,2]
[351780374,1738786243480,-1181.47,0.00013698,2]
[351780375,1738786243490,-500.0,0.00013698,2]
[351780376,1738786243500,-500.0,0.00013698,2]
[351780377,1738786243509,-500.0,0.00013698,2]
[351780378,1738786243520,-7953.94,0.00013698,2]
[351780379,1738786243529,-2600.36,0.00013698,2]
[351780380,1738786243539,-500.0,0.00013698,2]
[351780381,1738786243549,-2918.94,0.00013698,2]
[351780382,1738786243559,-500.0,0.00013698,2]
[351780383,1738786243571,-124418.49,0.00013698,2]
[351780384,1738786243582,-500.0,0.00013698,2]
[351780385,1738786243593,-500.0,0.00013698,2]
[351780386,1738786243603,-500.0,0.00013698,2]
[351780387,1738786243613,-500.0,0.00013698,2]
[351780388,1738786243623,-500.0,0.00013698,2]
[351780389,1738786243633,-500.0,0.00013698,2]
[351780390,1738786243642,-514.29,0.00013698,2]
[351780391,1738786243652,-3919.09,0.00013698,2]
[351780392,1738786243662,-564.69,0.00013698,2]
[351780393,1738786243671,-35172.66,0.00013698,2]
[351780394,1738786243681,-5261.29,0.00013698,2]
[351780395,1738786243691,-186.924811,0.00013699,2]
[351780396,1738786243700,-150.17,0.000137,2]
[351780397,1738786243710,-150.17,0.000137,2]
[351780398,1738786243719,-150.17,0.000137,2]
[351780399,1738786243729,-1477.50337331,0.00013735,2]
[351780400,1738786243739,-500.0,0.00013834,2]
[351780401,1738786243749,-500.0,0.00013835,2]
[351780402,1738786243759,-500.0,0.00013835,2]
[351780403,1738786243769,-500.0,0.00013835,2]
[351780404,1738786243778,-436.66818008,0.00013835,2]
[351780405,1738786243788,-500.0,0.00013835,2]
[351780406,1738786243798,-500.0,0.00013835,2]
[351780407,1738786243808,-206.53333869,0.00013835,2]
[351780408,1738786243817,-312.67526972,0.00013835,2]
[351780409,1738786243828,-184.15537675,0.00013835,2]
[351780410,1738786243838,-501.51623784,0.00013835,2]
[351780411,1738786243848,-500.0,0.00013835,2]
[351780412,1738786243857,-569.53726686,0.00013835,2]
[351780413,1738786243867,-517.83673803,0.00013835,2]
[351780414,1738786243877,-500.0,0.00013835,2]
[351780415,1738786243887,-500.0,0.00013835,2]
[351780416,1738786243897,-500.0,0.00013835,2]
[351780417,1738786243906,-528.49364949,0.00013835,2]
[351780418,1738786243916,-500.0,0.00013835,2]
[351780419,1738786243926,-500.0,0.00013835,2]
[351780420,1738786243935,-500.0,0.00013835,2]
[351780421,1738786243945,-500.0,0.00013835,2]
[351780422,1738786243954,-486.50431685,0.00013835,2]
[351780423,1738786243964,-500.0,0.00013835,2]
[351780424,1738786243975,-500.0,0.00013835,2]
[351780425,1738786243984,-500.0,0.00013835,2]
[351780426,1738786243994,-500.0,0.00013835,2]
[351780427,1738786244004,-500.0,0.00013835,2]
[351780428,1738786244014,-500.0,0.00013835,2]
[351780429,1738786244024,-873.75,0.00013835,2]
[351780430,1738786244034,-500.0,0.00013835,2]
[351780431,1738786244043,-500.0,0.00013835,2]
[351780432,1738786244053,-584.5,0.00013835,2]
[351780433,1738786244063,-1265.94,0.00013835,2]
[351780434,1738786244073,-553.73,0.00013835,2]
[351780435,1738786244082,-719.77,0.00013835,2]
[351780436,1738786244092,-501.06685821,0.00013835,2]
[351780437,1738786244102,-500.0,0.00013835,2]
[351780438,1738786244112,-625.08,0.00013835,2]
[351780439,1738786244122,-500.0,0.00013835,2]
[351780440,1738786244131,-500.0,0.00013835,2]
[351780441,1738786244141,-500.0,0.00013835,2]
[351780442,1738786244154,-500.0,0.00013835,2]
[351780443,1738786244167,-500.0,0.00013835,2]
[351780444,1738786244179,-1059.08,0.00013835,2]
[351780445,1738786244192,-1303.99,0.00013835,2]
[351780446,1738786244203,-500.0,0.00013835,2]
[351780447,1738786244216,-589.68,0.00013835,2]
[351780448,1738786244230,-500.0,0.00013835,2]
[351780449,1738786244240,-500.0,0.00013835,2]
[351780450,1738786244250,-500.0,0.00013835,2]
[351780451,1738786244261,-500.0,0.00013835,2]
[351780452,1738786244271,-408.81377868,0.00013835,2]
[351780453,1738786244283,-500.0,0.00013835,2]
[351780454,1738786244293,-500.0,0.00013835,2]